bitfinex/quotes_SOLUSD_20220212
["timestamp","ask_amount","ask_price","bid_price","bid_amount"]
[1644658375679,0.0414935,95.55,95.46,1.48017866]
[1644658375872,5.235,95.549,95.456,1.48017866]
[1644658376080,1.47123201,95.539,95.437,1.48017866]
[1644658376278,15.14,95.54,95.41,24.5671]
[1644658376279,5.236,95.538,95.438,1.48017866]
[1644658376473,29.39800363,95.537,95.438,41.60012043]
[1644658376672,34.63400363,95.537,95.439,5.236]
[1644658376876,51.31191435,95.536,95.439,5.236]
[1644658377072,5.236,95.535,95.439,5.236]
[1644658377272,7.42181435,95.535,95.439,5.236]
[1644658377476,2.18088138,95.534,95.439,30.0322]
[1644658377693,5.236,95.533,95.439,30.0322]
[1644658377874,15.7171,95.53,95.439,30.0322]
[1644658378077,5.236,95.529,95.439,30.0322]
[1644658379273,15.7171,95.53,95.439,30.0322]
[1644658379476,5.236,95.529,95.439,30.0322]
[1644658380875,5.236,95.529,95.439,24.7962]
[1644658381076,5.236,95.535,95.44,5.236]
[1644658385682,49.1261,95.536,95.44,5.236]
[1644658386084,49.1261,95.536,95.44,20.949]
[1644658386483,49.1261,95.536,95.44,22.42917866]
[1644658386684,49.1261,95.536,95.44,20.949]
[1644658386885,5.236,95.535,95.44,20.949]
[1644658387385,5.236,95.535,95.44,22.42917866]
[1644658387785,5.236,95.535,95.443,1.48017866]
[1644658387985,49.1261,95.536,95.443,1.48017866]
[1644658388587,49.1261,95.536,95.444,1.48017866]
[1644658388785,49.1261,95.536,95.443,1.48017866]
[1644658388989,54.3621,95.536,95.443,1.48017866]
[1644658389186,54.3621,95.536,95.444,1.48017866]
[1644658389787,54.3621,95.536,95.445,1.48017866]
[1644658389988,54.3621,95.536,95.446,5.236]
[1644658390487,54.3621,95.536,95.442,1.48017866]
[1644658390689,54.3621,95.536,95.443,5.236]
[1644658390892,49.1261,95.536,95.442,6.71617866]
[1644658391689,49.1261,95.536,95.444,1.48017866]
[1644658391890,5.236,95.535,95.445,5.236]
[1644658393813,5.236,95.535,95.445,6.71617866]
[1644658394212,5.236,95.535,95.448,1.48017866]
[1644658394413,5.236,95.535,95.449,1.48017866]
[1644658394617,5.236,95.535,95.446,1.48017866]
[1644658394813,5.236,95.535,95.448,1.48017866]
[1644658395013,15.925,95.535,95.45,15.14]
[1644658395215,15.925,95.535,95.451,1.48017866]
[1644658395418,15.925,95.535,95.45,15.14]
[1644658395419,49.1261,95.536,95.452,1.48017866]
[1644658395618,49.1261,95.536,95.455,1.48017866]
[1644658396018,49.1261,95.536,95.457,1.48017866]
[1644658396221,5.235,95.535,95.46,15.14]
[1644658396817,5.235,95.535,95.462,1.48017866]
[1644658397016,5.235,95.535,95.463,22.8933]
[1644658397216,49.1261,95.536,95.464,5.235]
[1644658397617,49.1261,95.536,95.464,6.71517866]
[1644658397817,49.1261,95.536,95.464,5.235]
[1644658398018,49.1261,95.536,95.464,6.71517866]
[1644658398818,49.1261,95.536,95.467,1.48017866]
[1644658399019,49.1261,95.536,95.468,40.70401881]
[1644658399619,49.1261,95.536,95.468,42.18419747]
[1644658399820,49.1261,95.536,95.47,1.48017866]
[1644658400020,49.1261,95.536,95.471,5.235]
[1644658400721,49.1261,95.536,95.471,6.71517866]
[1644658400919,49.1261,95.536,95.471,1.48017866]
[1644658401122,49.1261,95.536,95.475,1.48017866]
[1644658401319,49.1261,95.536,95.476,1.48017866]
[1644658401518,0.0414935,95.55,95.478,1.48017866]
[1644658401723,0.0414935,95.57,95.484,1.48017866]
[1644658401920,0.0414935,95.57,95.485,1.48017866]
[1644658402128,5.234,95.569,95.485,1.48017866]
[1644658402523,5.234,95.569,95.487,1.48017866]
[1644658402723,5.234,95.569,95.486,1.48017866]
[1644658403122,5.234,95.569,95.485,1.48017866]
[1644658403322,5.234,95.569,95.48,16.62017866]
[1644658403627,5.234,95.569,95.48,15.14]
[1644658404432,5.234,95.569,95.48,16.62017866]
[1644658405332,5.234,95.569,95.48,15.14]
[1644658405634,0.0414935,95.57,95.486,1.48017866]
[1644658405832,0.0414935,95.57,95.487,5.234]
[1644658406035,0.0414935,95.57,95.488,24.6391]
[1644658406533,0.0414935,95.57,95.489,5.234]
[1644658406733,0.0414935,95.57,95.489,6.71417866]
[1644658407534,0.0414935,95.57,95.489,5.234]
[1644658408936,0.0414935,95.57,95.489,6.71417866]
[1644658409135,0.0414935,95.57,95.489,5.234]
[1644658410634,0.0414935,95.57,95.49,15.14]
[1644658411837,5.232,95.569,95.49,15.14]
[1644658412037,0.0414935,95.57,95.491,5.232]
[1644658412640,0.0414935,95.57,95.492,1.48017866]
[1644658412842,0.0414935,95.57,95.49,15.14]
[1644658412843,5.232,95.569,95.493,5.232]
[1644658414337,5.232,95.569,95.49,15.14]
[1644658415741,0.0414935,95.57,95.491,5.232]
[1644658417938,5.232,95.569,95.491,5.232]
[1644658420342,0.0414935,95.57,95.491,5.232]
[1644658422742,0.0414935,95.57,95.49,15.14]
[1644658422743,5.232,95.569,95.49,15.14]
[1644658423144,5.232,95.569,95.49,16.62017866]
[1644658423343,5.232,95.569,95.49,15.14]
[1644658425348,5.232,95.569,95.492,1.48017866]
[1644658425547,5.232,95.569,95.492,0.98017866]
[1644658425754,5.232,95.569,95.49,15.14]
[1644658430479,0.0414935,95.57,95.49,15.14]
[1644658432079,5.232,95.569,95.49,15.14]
[1644658432281,0.0414935,95.57,95.49,15.14]
[1644658432481,5.232,95.569,95.49,15.14]
[1644658432681,0.0414935,95.57,95.491,5.232]
[1644658432882,0.0414935,95.57,95.492,109.08105749]
[1644658433083,0.0414935,95.59,95.494,107.85674364]
[1644658433281,0.0414935,95.6,95.495,7.13780113]
[1644658433482,0.0414935,95.6,95.51,15.14]
[1644658433683,29.12722439,95.598,95.511,70.77195416]
[1644658433883,5.232,95.597,95.511,70.77195416]
[1644658434883,2.17097001,95.596,95.511,47.46915416]
[1644658435083,5.232,95.595,95.511,47.46915416]
[1644658435482,24.2608,95.594,95.511,47.46915416]
[1644658435682,15.7071,95.59,95.511,47.46915416]
[1644658436183,5.232,95.589,95.511,47.46915416]
[1644658436384,5.232,95.589,95.51,15.14]
[1644658437585,15.7071,95.59,95.51,15.14]
[1644658437795,5.232,95.589,95.51,15.14]
[1644658439390,5.232,95.589,95.511,23.3901]
[1644658441595,15.7088,95.58,95.48,15.7063]
[1644658441792,47.1293,95.579,95.49,15.14]
[1644658441993,52.3613,95.579,95.49,15.14]
[1644658442194,0.0414935,95.57,95.49,15.14]
[1644658442393,0.0414935,95.57,95.491,5.232]
[1644658442694,2.02049917,95.568,95.492,41.18310216]
[1644658443192,5.232,95.567,95.492,41.18310216]
[1644658443393,27.9686,95.567,95.493,24.1778]
[1644658443993,27.9686,95.567,95.49,15.14]
[1644658444194,2.17097001,95.566,95.47,5.256]
[1644658444396,15.14,95.56,95.47,5.256]
[1644658444596,5.234,95.559,95.47,5.256]
[1644658444800,27.90542067,95.539,95.47,5.232]
[1644658444998,5.235,95.538,95.47,5.256]
[1644658445226,24.6309,95.538,95.47,5.232]
[1644658445400,24.6309,95.538,95.45,0.024]
[1644658445600,24.1945,95.537,95.45,0.024]
[1644658445798,24.1945,95.537,95.451,5.235]
[1644658446200,24.1945,95.537,95.452,47.04820745]
[1644658446401,5.235,95.536,95.452,47.04820745]
[1644658446599,5.235,95.536,95.45,0.024]
[1644658446800,15.7171,95.53,95.45,0.024]
[1644658446998,5.236,95.529,95.44,0.024]
[1644658447199,2.17097001,95.529,95.44,0.024]
[1644658447403,7.40697001,95.528,95.44,0.024]
[1644658447599,2.17097001,95.528,95.44,0.024]
[1644658447799,27.13187001,95.527,95.44,0.024]
[1644658448204,2.17097001,95.526,95.44,0.024]
[1644658448605,13.11933251,95.526,95.44,0.024]
[1644658448801,3.24230289,95.509,95.44,0.024]
[1644658449003,23.902,95.508,95.44,0.024]
[1644658449604,15.721,95.51,95.44,0.024]
[1644658449807,17.84704841,95.541,95.44,0.024]
[1644658450007,15.7193,95.52,95.44,0.024]
[1644658450704,30.80244686,95.519,95.44,0.024]
[1644658450906,23.4265,95.518,95.44,0.024]
[1644658451112,15.7213,95.5,95.44,0.024]
[1644658451305,15.7213,95.5,95.424,5.236]
[1644658451507,15.7213,95.5,95.41,0.024]
[1644658451508,5.237,95.499,95.41,0.024]
[1644658451709,7.40464841,95.499,95.39,0.024]
[1644658451907,2.16764841,95.498,95.39,0.024]
[1644658452105,5.238,95.497,95.39,0.024]
[1644658452509,2.16764841,95.496,95.39,0.024]
[1644658452726,15.7284,95.47,95.39,0.024]
[1644658452928,31.52132511,95.469,95.38,0.024]
[1644658453533,5.239,95.468,95.38,0.024]
[1644658453830,15.7298,95.45,95.38,0.024]
[1644658454129,15.7298,95.45,95.372,5.239]
[1644658454130,7.40764841,95.449,95.372,5.239]
[1644658454331,2.16764841,95.449,95.372,5.239]
[1644658454531,7.40764841,95.448,95.372,5.239]
[1644658454732,2.16764841,95.448,95.372,5.239]
[1644658454931,7.40764841,95.447,95.372,5.239]
[1644658455331,5.24,95.447,95.372,5.239]
[1644658455531,2.16260537,95.446,95.372,5.239]
[1644658455734,15.7373,95.43,95.36,0.024]
[1644658456132,23.39879845,95.429,95.36,0.024]
[1644658456432,5.241,95.428,95.36,0.024]
[1644658456833,7.40360537,95.428,95.34,15.14]
[1644658457534,30.53960537,95.428,95.34,15.14]
[1644658457733,15.7368,95.41,95.34,15.14]
[1644658457934,15.7368,95.41,95.34,15.164]
[1644658458638,5.242,95.409,95.34,15.164]
[1644658458834,5.242,95.409,95.34,15.14]
[1644658460536,15.7368,95.41,95.34,15.14]
[1644658460736,15.7368,95.41,95.34,15.164]
[1644658462035,5.242,95.409,95.34,15.164]
[1644658462235,5.242,95.409,95.34,15.14]
[1644658462941,15.7368,95.41,95.341,5.242]
[1644658463239,5.242,95.427,95.341,5.242]
[1644658464237,15.7351,95.42,95.341,5.242]
[1644658464437,30.8751,95.42,95.341,5.242]
[1644658467141,30.8751,95.42,95.34,0.024]
[1644658469644,5.242,95.419,95.34,0.024]
[1644658470243,15.7369,95.41,95.34,0.024]
[1644658470446,15.7369,95.41,95.331,24.0467]
[1644658470447,5.242,95.409,95.331,24.0467]
[1644658471347,5.242,95.409,95.332,45.85864201]
[1644658471746,23.7276,95.408,95.332,45.85864201]
[1644658471947,23.7276,95.408,95.333,5.242]
[1644658473153,5.242,95.407,95.332,45.85864201]
[1644658473452,5.242,95.407,95.331,24.0467]
[1644658474453,15.7385,95.4,95.331,24.0467]
[1644658475455,7.74892511,95.399,95.332,41.6168011]
[1644658476756,15.7385,95.4,95.333,5.242]
[1644658476955,5.242,95.419,95.333,5.242]
[1644658477156,5.242,95.444,95.34,0.024]
[1644658477357,5.241,95.427,95.34,0.024]
[1644658477556,23.2146,95.427,95.341,5.241]
[1644658477758,30.47041807,95.426,95.341,5.241]
[1644658478159,30.47041807,95.426,95.342,24.2022]
[1644658478362,23.2146,95.427,95.343,5.241]
[1644658478558,29.0307,95.459,95.35,15.164]
[1644658478758,5.241,95.465,95.36,0.024]
[1644658478996,30.1769,95.469,95.361,5.24]
[1644658479166,30.1769,95.469,95.37,0.024]
[1644658479365,27.93317701,95.468,95.37,0.024]
[1644658479566,5.24,95.467,95.37,0.024]
[1644658481066,5.24,95.467,95.372,2.95674364]
[1644658481466,2.1575576,95.466,95.372,2.95674364]
[1644658481668,2.1575576,95.466,95.373,5.24]
[1644658481968,2.1575576,95.466,95.374,4.03035886]
[1644658482168,2.1575576,95.466,95.375,5.239]
[1644658482370,2.1575576,95.466,95.375,29.3521]
[1644658482371,15.7288,95.46,95.375,29.3521]
[1644658482568,5.24,95.459,95.375,24.1131]
[1644658482770,7.3975576,95.459,95.375,24.1131]
[1644658482969,2.1575576,95.458,95.375,24.1131]
[1644658483173,5.24,95.457,95.376,4.03177902]
[1644658483370,2.1575576,95.458,95.376,4.03177902]
[1644658483670,5.24,95.457,95.376,4.03177902]
[1644658483970,27.93317701,95.468,95.381,2.95674364]
[1644658484171,27.93317701,95.468,95.382,5.239]
[1644658484372,27.93317701,95.468,95.39,0.024]
[1644658484673,27.93317701,95.468,95.384,4.03177902]
[1644658484871,27.93317701,95.468,95.39,0.024]
[1644658486373,27.93317701,95.468,95.39,4.05577902]
[1644658486593,27.93317701,95.468,95.385,9.27077902]
[1644658486794,27.93317701,95.468,95.391,4.03177902]
[1644658486999,27.93317701,95.468,95.392,40.49031038]
[1644658487397,27.93317701,95.468,95.393,5.239]
[1644658491503,5.239,95.467,95.393,5.239]
[1644658492000,30.0007,95.467,95.393,5.239]
[1644658492202,2.1575576,95.466,95.393,5.239]
[1644658492402,5.239,95.465,95.392,40.49031038]
[1644658493202,5.239,95.466,95.392,40.49031038]
[1644658495102,5.239,95.466,95.39,0.024]
[1644658495302,2.1575576,95.465,95.39,0.024]
[1644658495511,1.1575576,95.465,95.39,0.024]
[1644658495703,1.1575576,95.465,95.38,0.024]
[1644658495909,5.239,95.464,95.38,0.024]
[1644658496104,24.7617,95.467,95.38,0.024]
[1644658497508,24.7617,95.467,95.381,5.239]
[1644658498111,5.239,95.489,95.381,5.239]
[1644658498309,23.5982,95.488,95.39,0.024]
[1644658498512,23.5982,95.488,95.391,5.238]
[1644658498708,23.5982,95.488,95.4,0.024]
[1644658498909,23.5982,95.488,95.401,5.238]
[1644658499111,15.7202,95.51,95.41,15.7187]
[1644658499312,24.1903,95.509,95.42,0.024]
[1644658499511,24.1903,95.509,95.421,5.237]
[1644658499712,24.1903,95.509,95.422,23.1249]
[1644658499914,24.1903,95.509,95.423,5.237]
[1644658500111,25.19416135,95.508,95.424,37.70340741]
[1644658500313,25.19416135,95.508,95.425,5.237]
[1644658502612,7.392285,95.507,95.424,37.70340741]
[1644658503812,2.155285,95.507,95.424,37.70340741]
[1644658505325,5.237,95.506,95.424,37.70340741]
[1644658506319,2.155285,95.505,95.424,37.70340741]
[1644658506816,15.7221,95.5,95.424,37.70340741]
[1644658507317,2.155285,95.499,95.424,37.70340741]
[1644658507517,5.237,95.498,95.424,37.70340741]
[1644658508015,2.155285,95.497,95.424,37.70340741]
[1644658508518,15.7237,95.49,95.424,37.70340741]
[1644658508720,5.237,95.489,95.424,37.70340741]
[1644658508921,24.9953,95.488,95.424,37.70340741]
[1644658509121,5.238,95.487,95.422,23.1249]
[1644658509319,5.238,95.487,95.41,0.024]
[1644658509519,15.7254,95.48,95.41,0.024]
[1644658509719,5.238,95.479,95.41,0.024]
[1644658509920,7.10453882,95.479,95.41,0.024]
[1644658510118,5.95356221,95.478,95.41,0.024]
[1644658510319,5.238,95.477,95.41,0.024]
[1644658510518,5.238,95.477,95.392,39.38074914]
[1644658510719,15.7272,95.47,95.392,39.38074914]
[1644658510920,5.239,95.469,95.38,0.024]
[1644658511121,15.14,95.46,95.38,0.024]
[1644658511326,30.0573,95.459,95.38,0.024]
[1644658511519,24.8183,95.459,95.38,0.024]
[1644658511720,26.96853788,95.459,95.351,2.95674364]
[1644658511920,7.39023788,95.458,95.37,0.024]
[1644658512120,15.52023788,95.458,95.36,0.024]
[1644658512321,2.15023788,95.457,95.37,0.024]
[1644658512524,5.24,95.456,95.36,0.024]
[1644658512745,15.7301,95.45,95.36,0.024]
[1644658512923,5.24,95.449,95.36,0.024]
[1644658513125,25.19416135,95.448,95.36,0.024]
[1644658513423,5.24,95.447,95.36,0.024]
[1644658513627,7.39023788,95.447,95.36,0.024]
[1644658513838,23.4196,95.446,95.36,0.024]
[1644658514025,5.24,95.445,95.36,0.024]
[1644658514224,15.14,95.44,95.36,0.024]
[1644658514626,5.241,95.439,95.36,0.024]
[1644658514824,15.7329,95.43,95.36,0.024]
[1644658515025,29.2746,95.429,95.36,0.024]
[1644658515225,24.0336,95.429,95.36,0.024]
[1644658515424,5.241,95.428,95.36,0.024]
[1644658516227,5.95356221,95.419,95.36,0.024]
[1644658516431,5.241,95.418,95.343,38.69274135]
[1644658516627,23.7953,95.417,95.343,38.69274135]
[1644658516828,5.242,95.416,95.343,38.69274135]
[1644658517232,5.242,95.416,95.34,0.024]
[1644658517428,5.242,95.416,95.33,0.024]
[1644658517630,5.242,95.416,95.331,5.242]
[1644658517832,15.737,95.41,95.331,7.62566791]
[1644658518230,15.737,95.41,95.332,37.12098483]
[1644658518435,15.737,95.41,95.333,5.242]
[1644658518638,15.737,95.41,95.333,7.62566791]
[1644658519038,15.737,95.41,95.333,5.242]
[1644658519538,0.62955221,95.419,95.334,43.0]
[1644658519736,5.242,95.416,95.34,0.024]
[1644658519937,5.242,95.418,95.34,0.024]
[1644658520364,23.5411,95.417,95.34,0.024]
[1644658520757,15.737,95.41,95.34,0.024]
[1644658520956,5.242,95.409,95.335,2.38366791]
[1644658521156,23.5411,95.417,95.34,0.024]
[1644658521357,23.5411,95.417,95.335,2.38366791]
[1644658521564,23.5411,95.417,95.34,0.024]
[1644658521761,15.7399,95.39,95.34,0.024]
[1644658521958,15.7399,95.39,95.336,39.04365709]
[1644658522560,15.7399,95.39,95.335,2.38366791]
[1644658523869,23.1273,95.402,95.335,2.38366791]
[1644658524563,18.74295354,95.401,95.335,2.38366791]
[1644658524764,18.74295354,95.401,95.332,23.7178]
[1644658527265,5.242,95.409,95.332,23.7178]
[1644658527266,5.242,95.4,95.333,2.38366791]
[1644658527466,5.242,95.437,95.34,0.024]
[1644658527669,5.242,95.439,95.341,5.241]
[1644658527865,23.35,95.445,95.341,2.38366791]
[1644658528066,23.35,95.445,95.342,7.62466791]
[1644658528265,24.72187277,95.43,95.35,0.024]
[1644658528668,24.72187277,95.43,95.351,2.38366791]
[1644658528865,24.72187277,95.43,95.353,46.26131778]
[1644658529066,24.72187277,95.43,95.354,28.3945]
[1644658529567,23.35,95.445,95.355,2.38366791]
[1644658529768,23.35,95.445,95.36,0.024]
[1644658529969,23.35,95.445,95.361,5.24]
[1644658530169,23.35,95.445,95.361,7.62366791]
[1644658530367,23.35,95.445,95.362,2.38366791]
[1644658530967,22.89493763,95.45,95.362,2.38366791]
[1644658531169,22.89493763,95.45,95.37,0.024]
[1644658531367,5.24,95.469,95.372,47.38567342]
[1644658531567,5.24,95.469,95.373,29.2957]
[1644658532267,5.24,95.469,95.374,2.38366791]
[1644658532466,22.97788615,95.468,95.375,5.239]
[1644658532669,5.239,95.467,95.375,5.239]
[1644658532867,24.7943,95.466,95.376,2.38366791]
[1644658533068,5.239,95.465,95.376,2.38366791]
[1644658533267,5.239,95.465,95.377,5.239]
[1644658533567,15.7289,95.46,95.377,5.239]
[1644658533769,5.24,95.459,95.376,2.38366791]
[1644658534370,5.24,95.459,95.373,24.0567]
[1644658534574,15.7308,95.45,95.373,24.0567]
[1644658534771,2.84582741,95.449,95.373,24.0567]
[1644658534971,24.482,95.448,95.373,24.0567]
[1644658535170,5.24,95.447,95.373,24.0567]
[1644658536773,15.7323,95.44,95.373,24.0567]
[1644658536972,5.24,95.439,95.373,24.0567]
[1644658537973,5.24,95.439,95.36,0.024]
[1644658541578,15.7343,95.43,95.36,0.024]
[1644658541879,5.241,95.429,95.36,0.024]
[1644658542078,23.8152,95.428,95.36,0.024]
[1644658542279,5.241,95.427,95.36,0.024]
[1644658542478,22.83676946,95.426,95.36,0.024]
[1644658542681,5.241,95.425,95.36,0.024]
[1644658542880,2.9869441,95.409,95.36,0.024]
[1644658543081,2.9869441,95.409,95.352,23.8199]
[1644658543880,2.9869441,95.409,95.353,5.242]
[1644658544081,5.242,95.427,95.352,23.8199]
[1644658544885,24.0948,95.429,95.353,11.65706926]
[1644658545082,15.7309,95.45,95.354,4.03240135]
[1644658545288,15.7309,95.45,95.36,0.024]
[1644658545685,25.82324822,95.454,95.383,1.48182085]
[1644658545883,25.82324822,95.454,95.385,1.48182085]
[1644658546713,25.82324822,95.454,95.386,5.24]
[1644658546910,25.82324822,95.454,95.385,6.72182085]
[1644658547514,25.82324822,95.454,95.385,5.24]
[1644658548114,15.7309,95.45,95.384,40.60036289]
[1644658548321,5.24,95.449,95.384,40.60036289]
[1644658548514,15.7309,95.45,95.379,1.48182085]
[1644658548715,23.4473,95.449,95.38,5.24]
[1644658548915,25.60321547,95.449,95.38,5.24]
[1644658549314,5.24,95.448,95.378,1.48182085]
[1644658549715,5.24,95.448,95.379,41.40517437]
[1644658550018,2.15591547,95.447,95.379,41.40517437]
[1644658550216,5.24,95.446,95.376,1.48182085]
[1644658550615,2.15591547,95.445,95.376,1.48182085]
[1644658551615,2.15591547,95.445,95.375,1.48182085]
[1644658552015,5.24,95.444,95.375,1.48182085]
[1644658552316,15.7326,95.44,95.377,1.48182085]
[1644658552518,5.24,95.439,95.377,1.48182085]
[1644658552718,7.39591547,95.439,95.37,0.024]
[1644658552918,2.15591547,95.438,95.362,1.48182085]
[1644658553116,5.241,95.437,95.363,37.74972095]
[1644658553516,26.07841547,95.436,95.363,37.74972095]
[1644658553718,15.7363,95.43,95.364,1.48182085]
[1644658553917,15.7363,95.43,95.363,37.74972095]
[1644658554117,15.7363,95.43,95.37,1.48182085]
[1644658554316,15.7363,95.43,95.371,1.48182085]
[1644658554521,5.241,95.435,95.372,1.48182085]
[1644658554718,23.9225,95.436,95.38,1.48182085]
[1644658554920,15.731,95.45,95.384,46.23177567]
[1644658555123,5.24,95.449,95.385,1.48182085]
[1644658555319,5.24,95.449,95.389,1.48182085]
[1644658555523,5.24,95.452,95.388,1.48182085]
[1644658555720,5.24,95.452,95.389,1.48182085]
[1644658556120,24.01384637,95.461,95.389,1.48182085]
[1644658556321,24.7609,95.46,95.387,1.48182085]
[1644658556520,24.7609,95.46,95.388,1.48182085]
[1644658556722,24.7609,95.46,95.387,1.48182085]
[1644658557031,5.239,95.459,95.387,1.48182085]
[1644658557321,5.239,95.459,95.388,1.48182085]
[1644658557523,5.239,95.459,95.389,1.48182085]
[1644658557723,5.239,95.459,95.39,1.48182085]
[1644658558320,5.239,95.459,95.386,24.36772085]
[1644658559123,5.239,95.459,95.386,22.8859]
[1644658559525,65.96662883,95.46,95.386,22.8859]
[1644658559724,5.239,95.459,95.386,22.8859]
[1644658559926,7.39491547,95.459,95.386,22.8859]
[1644658560125,15.731,95.45,95.384,46.23177567]
[1644658560329,5.24,95.449,95.38,0.024]
[1644658560625,31.44721547,95.449,95.375,1.48182085]
[1644658560828,2.15591547,95.448,95.375,1.48182085]
[1644658561028,5.24,95.447,95.375,1.48182085]
[1644658561426,5.24,95.447,95.36,0.024]
[1644658561427,2.15591547,95.446,95.376,35.0528195]
[1644658561627,0.34738473,95.445,95.376,35.0528195]
[1644658561825,15.733,95.44,95.374,1.48182085]
[1644658562028,5.24,95.439,95.373,1.48182085]
[1644658562225,5.24,95.439,95.371,1.48182085]
[1644658562226,7.39591547,95.439,95.371,1.48182085]
[1644658562425,7.39591547,95.439,95.37,1.48182085]
[1644658562628,2.15591547,95.438,95.37,1.48182085]
[1644658562830,28.2719,95.437,95.371,46.23717216]
[1644658563228,2.15591547,95.436,95.371,46.23717216]
[1644658563430,5.24,95.435,95.371,46.23717216]
[1644658563628,5.24,95.435,95.365,1.48182085]
[1644658563828,15.7349,95.43,95.364,1.48182085]
[1644658564028,5.241,95.429,95.36,0.024]
[1644658564228,7.39691547,95.429,95.36,0.024]
[1644658564428,2.15591547,95.428,95.36,0.024]
[1644658564627,5.241,95.427,95.36,0.024]
[1644658564828,18.41859344,95.426,95.36,0.024]
[1644658565027,5.241,95.425,95.36,0.024]
[1644658565227,7.39691547,95.425,95.36,0.024]
[1644658565628,2.15591547,95.424,95.36,0.024]
[1644658565829,15.7373,95.41,95.36,0.024]
[1644658566029,15.7373,95.41,95.356,40.58078166]
[1644658566230,2.15591547,95.409,95.356,40.58078166]
[1644658567433,5.242,95.408,95.356,40.58078166]
[1644658567831,2.15591547,95.407,95.356,40.58078166]
[1644658570431,5.242,95.409,95.356,40.58078166]
[1644658570834,5.242,95.409,95.348,1.48182085]
[1644658571134,5.242,95.409,95.347,1.48182085]
[1644658571534,5.242,95.409,95.345,1.48182085]
[1644658571936,5.242,95.409,95.346,43.1095706]
[1644658572842,5.242,95.409,95.344,1.48182085]
[1644658573437,5.242,95.409,95.347,1.48182085]
[1644658573637,15.7373,95.41,95.347,1.48182085]
[1644658573842,15.7373,95.41,95.346,1.48182085]
[1644658574039,15.7373,95.41,95.344,1.48182085]
[1644658574238,15.7373,95.41,95.345,22.6433]
[1644658575043,2.15591547,95.409,95.345,22.6433]
[1644658575242,15.74,95.4,95.345,22.6433]
[1644658575439,5.242,95.399,95.345,22.6433]
[1644658575842,12.23858993,95.398,95.345,22.6433]
[1644658576039,5.242,95.397,95.345,22.6433]
[1644658576239,12.23858993,95.398,95.345,22.6433]
[1644658577542,5.242,95.397,95.345,22.6433]
[1644658578740,15.6005,95.399,95.345,22.6433]
[1644658583150,3.67602988,95.398,95.345,22.6433]
[1644658584546,15.6005,95.399,95.345,22.6433]
[1644658586253,34.2448697,95.414,95.345,22.6433]
[1644658587551,34.2448697,95.414,95.346,1.48182085]
[1644658588255,34.2448697,95.414,95.349,1.48182085]
[1644658588456,34.2448697,95.414,95.35,1.48182085]
[1644658588954,34.2448697,95.414,95.351,38.18666714]
[1644658589357,23.2862,95.414,95.355,1.48182085]
[1644658589557,23.2862,95.414,95.357,1.48182085]
[1644658589758,23.2862,95.414,95.358,1.48182085]
[1644658590359,23.2862,95.414,95.359,1.48182085]
[1644658590560,23.2862,95.414,95.358,1.48182085]
[1644658590759,23.2862,95.414,95.359,1.48182085]
[1644658590961,23.2862,95.414,95.358,1.48182085]
[1644658591160,23.2862,95.414,95.359,1.48182085]
[1644658591363,15.7359,95.42,95.358,1.48182085]
[1644658591565,5.242,95.428,95.359,1.48182085]
[1644658591762,24.1481,95.429,95.366,1.48182085]
[1644658591960,24.1481,95.429,95.368,1.48182085]